fUST/lending_fUST_20250816
["ID","MTS","AMOUNT","RATE_DAILY","PERIOD"]
[379464693,1755292239467,-153.0,0.0002557,2]
[379464694,1755292239476,-153.0,0.0002557,2]
[379464695,1755292239485,-153.0,0.0002557,2]
[379464696,1755292239495,-153.0,0.0002557,2]
[379464697,1755292239505,-153.0,0.0002557,2]
[379464698,1755292239515,-153.0,0.0002557,2]
[379464699,1755292239525,-153.0,0.0002557,2]
[379464700,1755292239535,-153.0,0.0002557,2]
[379464701,1755292239545,-153.0,0.0002557,2]
[379464702,1755292239554,-153.0,0.0002557,2]
[379464703,1755292239564,-153.0,0.0002557,2]
[379464704,1755292239574,-153.0,0.0002557,2]
[379464705,1755292239584,-153.0,0.0002557,2]
[379464706,1755292239594,-153.0,0.0002557,2]
[379464707,1755292239603,-153.0,0.0002557,2]
[379464708,1755292239612,-153.0,0.0002557,2]
[379464709,1755292239622,-153.0,0.0002557,2]
[379464710,1755292239632,-153.0,0.0002557,2]
[379464711,1755292239642,-153.0,0.0002557,2]
[379464712,1755292239651,-153.0,0.0002557,2]
[379464713,1755292239661,-153.0,0.0002557,2]
[379464714,1755292239671,-153.0,0.0002557,2]
[379464715,1755292239680,-153.0,0.0002557,2]
[379464716,1755292239689,-153.0,0.0002557,2]
[379464717,1755292239699,-153.0,0.0002557,2]
[379464718,1755292239708,-153.0,0.0002557,2]
[379464719,1755292239717,-153.0,0.0002557,2]
[379464720,1755292239726,-153.0,0.0002557,2]
[379464721,1755292239736,-153.0,0.0002557,2]
[379464722,1755292239746,-153.0,0.0002557,2]
[379464723,1755292239755,-153.0,0.0002557,2]
[379464724,1755292239765,-153.0,0.0002557,2]
[379464725,1755292239776,-153.0,0.0002557,2]
[379464726,1755292239785,-153.0,0.0002557,2]
[379464727,1755292239795,-153.0,0.0002557,2]
[379464728,1755292239804,-153.0,0.0002557,2]
[379464729,1755292239817,-153.0,0.0002557,2]
[379464730,1755292239827,-153.0,0.0002557,2]
[379464731,1755292239836,-153.0,0.0002557,2]
[379464732,1755292239845,-153.0,0.0002557,2]
[379464733,1755292239855,-153.0,0.0002557,2]
[379464734,1755292239864,-153.0,0.0002557,2]
[379464735,1755292239873,-153.0,0.0002557,2]
[379464736,1755292239882,-153.0,0.0002557,2]
[379464737,1755292239892,-153.0,0.0002557,2]
[379464738,1755292239901,-153.0,0.0002557,2]
[379464739,1755292239911,-153.0,0.0002557,2]
[379464740,1755292239921,-153.0,0.0002557,2]
[379464741,1755292239930,-153.0,0.0002557,2]
[379464742,1755292239939,-153.0,0.0002557,2]
[379464743,1755292239948,-153.0,0.0002557,2]
[379464744,1755292239958,-153.0,0.0002557,2]
[379464745,1755292239967,-153.0,0.0002557,2]
[379464746,1755292239976,-153.0,0.0002557,2]
[379464747,1755292239986,-153.0,0.0002557,2]
[379464748,1755292239996,-153.0,0.0002557,2]
[379464749,1755292240005,-153.0,0.0002557,2]
[379464750,1755292240015,-153.0,0.0002557,2]
[379464751,1755292240024,-153.0,0.0002557,2]
[379464752,1755292240034,-153.0,0.0002557,2]
[379464753,1755292240044,-153.0,0.0002557,2]
[379464754,1755292240053,-153.0,0.0002557,2]
[379464755,1755292240065,-153.0,0.0002557,2]
[379464756,1755292240074,-153.0,0.0002557,2]
[379464757,1755292240084,-153.0,0.0002557,2]
[379464758,1755292240093,-153.0,0.0002557,2]
[379464759,1755292240103,-153.0,0.0002557,2]
[379464760,1755292240113,-153.0,0.0002557,2]
[379464761,1755292240123,-153.0,0.0002557,2]
[379464762,1755292240132,-153.0,0.0002557,2]
[379464763,1755292240142,-153.0,0.0002557,2]
[379464764,1755292240152,-153.0,0.0002557,2]
[379464765,1755292240162,-501.07241622,0.00025573,2]
[379464766,1755292240172,-151.0,0.00025573,6]
[379464767,1755292240182,-5319.88887564,0.00025577,3]
[379464768,1755292240192,-823.0,0.00025698,2]
[379464769,1755292240203,-195.86,0.000257,7]
[379464770,1755292240212,-2200.0,0.00025748,2]
[379464771,1755292240222,-151.0,0.00025754,2]
[379464772,1755292240232,-500.0,0.00025754,2]
[379464773,1755292240242,-1104.78,0.00025905,3]
[379464774,1755292240252,-198.0,0.00026028,2]
[379464775,1755292240263,-500.0,0.00026028,2]
[379464776,1755292240272,-500.0,0.00026073,2]
[379464777,1755292240282,-500.0,0.00026073,2]
[379464778,1755292240292,-500.0,0.00026073,2]
[379464779,1755292240302,-500.0,0.00026073,2]
[379464781,1755292240312,-500.0,0.00026073,2]
[379464783,1755292240322,-151.0,0.00026084,6]
[379464784,1755292240332,-5319.88887564,0.00026094,4]
[379464785,1755292240342,-15268.8174882,0.00026157,2]
[379464786,1755292240353,-157.605,0.00026211,2]
[379464787,1755292240362,-151.0,0.00026214,2]
[379464788,1755292240372,-500.0,0.00026214,2]
[379464789,1755292240382,-151.0,0.00026214,2]
[379464790,1755292240392,-500.0,0.00026214,2]
[379464791,1755292240401,-151.0,0.00026214,2]
[379464792,1755292240411,-500.0,0.00026214,2]
[379464793,1755292240421,-151.0,0.00026214,2]
[379464794,1755292240430,-500.0,0.00026214,2]
[379464795,1755292240440,-151.0,0.00026214,2]
[379464796,1755292240452,-500.0,0.00026214,2]
[379464797,1755292240465,-151.0,0.00026214,2]
[379464798,1755292240475,-500.0,0.00026214,2]
[379464799,1755292240484,-151.0,0.00026214,2]
[379464800,1755292240495,-500.0,0.00026214,2]
[379464801,1755292240504,-151.0,0.00026214,2]
[379464803,1755292240514,-220.41087772,0.00026214,2]
[379464804,1755292240524,-151.0,0.00026214,2]
[379464805,1755292240534,-17842.522448,0.00026214,2]
[379464806,1755292240544,-151.0,0.00026214,2]
[379464807,1755292240554,-151.0,0.00026214,2]
[379464808,1755292240565,-151.0,0.00026214,2]
[379464809,1755292240574,-151.0,0.00026214,2]
[379464810,1755292240584,-151.0,0.00026214,2]
[379464811,1755292240594,-151.0,0.00026214,2]
[379464812,1755292240603,-151.0,0.00026214,2]
[379464813,1755292240613,-151.0,0.00026214,2]
[379464814,1755292240622,-151.0,0.00026214,2]
[379464815,1755292240718,-861.96,0.00026215,2]
[379464816,1755292240727,-153.11088,0.00026225,2]
[379464817,1755292240737,-12614.81,0.000263,7]
[379464818,1755292240746,-232.08354597,0.000263,7]
[379464819,1755292240757,-216.77912109,0.000263,7]
[379464820,1755292240766,-843.47195277,0.000263,7]
[379464821,1755292240776,-417.15472785,0.000263,7]
[379464822,1755292240786,-500.0,0.00026302,2]
[379464823,1755292240796,-157.605,0.00026311,2]
[379464824,1755292240806,-153.11088,0.00026325,2]
[379464825,1755292240816,-972.0,0.00026403,2]
[379464826,1755292240826,-2152.0,0.00026403,2]
[379464827,1755292240835,-636.0,0.00026403,2]
[379464828,1755292240844,-408.0,0.00026403,2]
[379464829,1755292240853,-153.11088,0.00026425,2]
[379464830,1755292240863,-1500.85230455,0.00026443,2]
[379464831,1755292240871,-150.0,0.00026473,2]
[379464832,1755292240881,-1100.0,0.0002652,2]
[379464833,1755292240890,-153.11088,0.00026525,2]
[379464834,1755292240899,-500.0,0.00026576,2]
[379464835,1755292240908,-151.0,0.00026594,7]
[379464836,1755292240918,-2834.62,0.000266,7]
[379464837,1755292240927,-215.63758983,0.000266,7]
[379464838,1755292240936,-5319.88887564,0.0002661,5]
[379464839,1755292240945,-1000.0,0.00026621,2]
[379464840,1755292240955,-1000.0,0.00026621,2]
[379464841,1755292240964,-1000.88170187,0.00026621,2]
[379464842,1755292240974,-1000.0,0.00026621,2]
[379464843,1755292240984,-153.11088,0.00026625,2]
[379464844,1755292240993,-889.5377199,0.0002663,2]
[379464845,1755292241003,-552.4,0.00026646,3]
[379464846,1755292241012,-456.97595022,0.00026787,2]
[379464847,1755292241022,-500.0,0.0002685,2]
[379464848,1755292241031,-200.0,0.00026859,20]
[379464849,1755292241043,-200.0,0.00026859,20]
[379464850,1755292241053,-200.0,0.00026859,20]
[379464851,1755292241063,-200.0,0.00026859,20]
[379464852,1755292241072,-200.0,0.00026859,20]
[379464853,1755292241083,-200.0,0.00026859,20]
[379464854,1755292241093,-200.0,0.00026859,20]
[379464855,1755292241104,-200.0,0.00026859,20]
[379464856,1755292241113,-200.0,0.00026859,20]
[379464857,1755292241123,-200.0,0.00026859,20]
[379464858,1755292241134,-200.0,0.00026859,20]
[379464859,1755292241144,-200.0,0.00026859,20]
[379464860,1755292241153,-200.0,0.00026859,20]
[379464861,1755292241162,-200.0,0.00026859,20]
[379464862,1755292241172,-200.0,0.00026859,20]
[379464863,1755292241181,-200.0,0.00026859,20]
[379464864,1755292241191,-200.0,0.00026859,20]
[379464865,1755292241200,-200.0,0.00026859,20]
[379464866,1755292241210,-200.0,0.00026859,20]
[379464867,1755292241219,-200.0,0.00026859,20]
[379464868,1755292241229,-390.0,0.00026859,20]
[379464869,1755292241238,-168.0,0.00026927,2]
[379464870,1755292241247,-569.98836299,0.00026973,2]
[379464871,1755292241256,-500.0,0.00026973,2]
[379464872,1755292241266,-16994.98,0.00027,2]
[379464873,1755292241275,-309.345847,0.00027016,2]
[379464874,1755292241284,-250.0,0.00027021,2]
[379464875,1755292241293,-151.0,0.00027105,7]
[379464876,1755292241303,-500.0,0.00027124,2]
[379464877,1755292241312,-5319.88887564,0.00027126,7]
[379464878,1755292241322,-1500.0,0.00027168,2]
[379464879,1755292241331,-1500.0,0.00027168,2]
[379464880,1755292241340,-154.65201671,0.00027168,2]
[379464881,1755292241349,-208.0,0.0002718,2]
[379464882,1755292241358,-171.0794027,0.00027346,2]
[379464883,1755292241368,-5550.34001896,0.00027384,7]
[379464884,1755292241377,-153.43776749,0.00027397,2]
[379464885,1755292241386,-500.0,0.00027397,5]
[379464886,1755292241394,-500.0,0.00027398,2]
[379464887,1755292241403,-12614.81,0.000274,7]
[379464888,1755292241413,-232.111669,0.000274,10]
[379464889,1755292241422,-15268.8174882,0.00027482,2]
[379464890,1755292241432,-1500.85230455,0.00027485,2]
[379464891,1755292241440,-1000.0,0.00027488,2]
[379464892,1755292241450,-200.0,0.0002749,18]
[379464893,1755292241463,-356.4416263,0.00027495,2]
[379464894,1755292241472,-1424.34073869,0.00027495,2]
[379464895,1755292241481,-418.90256455,0.00027495,2]
[379464896,1755292241490,-2000.0,0.000275,2]
[379464897,1755292241500,-1000.0,0.00027521,5]
[379464898,1755292241509,-350.0,0.00027568,5]
[379464899,1755292241518,-500.0,0.00027573,5]
[379464900,1755292241528,-150.0,0.00027573,5]
[379464901,1755292241538,-151.0,0.00027581,7]
[379464902,1755292241547,-151.0,0.00027581,7]
[379464903,1755292241557,-151.0,0.00027581,7]
[379464904,1755292241566,-151.0,0.00027581,7]
[379464905,1755292241575,-168.336471,0.00027581,7]
[379464906,1755292241584,-154.5425,0.00027581,7]
[379464907,1755292241593,-688.077715,0.00027582,7]
[379464908,1755292241603,-688.077715,0.00027582,7]
[379464909,1755292241612,-688.077715,0.00027582,7]
[379464910,1755292241622,-688.077715,0.00027582,7]
[379464911,1755292241632,-688.077715,0.00027582,7]
[379464912,1755292241641,-688.077715,0.00027582,7]
[379464913,1755292241650,-688.077715,0.00027582,7]
[379464914,1755292241659,-688.077715,0.00027582,7]
[379464915,1755292241669,-688.077715,0.00027582,7]
[379464916,1755292241678,-688.077715,0.00027582,7]
[379464917,1755292241687,-688.077715,0.00027582,7]
[379464918,1755292241697,-688.077715,0.00027582,7]
[379464919,1755292241706,-688.077715,0.00027582,7]
[379464920,1755292241716,-688.077715,0.00027582,7]
[379464921,1755292241725,-688.077715,0.00027582,7]
[379464922,1755292241734,-688.077715,0.00027582,7]
[379464923,1755292241744,-688.077715,0.00027582,7]
[379464924,1755292241752,-688.077715,0.00027582,7]
[379464925,1755292241762,-688.077715,0.00027582,7]
[379464926,1755292241771,-688.07772,0.00027582,7]
[379464927,1755292241780,-151.0,0.00027582,7]
[379464928,1755292241789,-151.0,0.00027582,7]
[379464929,1755292241798,-151.0,0.00027582,7]
[379464930,1755292241807,-151.0,0.00027582,7]
[379464931,1755292241817,-151.0,0.00027582,7]
[379464932,1755292241826,-151.0,0.00027582,7]
[379464933,1755292241835,-151.0,0.00027582,7]
[379464934,1755292241844,-151.0,0.00027582,7]
[379464935,1755292241854,-151.0,0.00027582,7]
[379464936,1755292241863,-151.0,0.00027582,7]
[379464937,1755292241872,-151.0,0.00027582,7]
[379464938,1755292241881,-151.0,0.00027582,7]
[379464939,1755292241890,-151.0,0.00027582,7]
[379464940,1755292241899,-151.0,0.00027582,7]
[379464941,1755292241908,-151.0,0.00027582,7]
[379464942,1755292241918,-221.175588,0.00027582,7]
[379464943,1755292241927,-151.0,0.00027582,7]
[379464944,1755292241937,-151.0,0.00027582,7]
[379464945,1755292241946,-151.0,0.00027582,7]
[379464946,1755292241956,-290.094404,0.00027582,7]
[379464947,1755292241965,-151.0,0.00027582,7]
[379464948,1755292241975,-151.0,0.00027582,7]
[379464949,1755292241984,-151.0,0.00027583,2]
[379464950,1755292241994,-18502.69577858,0.00027583,2]
[379464951,1755292242003,-160.0,0.00027584,10]
[379464952,1755292242013,-5087.55301414,0.00027585,2]
[379464953,1755292242022,-408858.38919523,0.00027585,20]
[379464954,1755292242031,-386791.9771405,0.00027585,20]
[379464965,1755292243712,-160.0,0.00024,10]
[379464966,1755292243722,-160.0,0.000263,7]
[379464967,1755292243732,-367839.47830222,0.00027585,20]
[379464968,1755292243741,-930119.52293858,0.00027585,20]
[379464969,1755292243751,-1089.21282972,0.00027585,10]
[379464970,1755292243760,-200.0,0.00027585,10]
[379464971,1755292243770,-1330.1274624,0.00027585,30]
[379464972,1755292243779,-695.5020886,0.00027585,35]
[379464973,1755292243789,-807.04584827,0.00027585,32]
[379464974,1755292243798,-158.12003023,0.00027585,30]
[379464975,1755292243807,-1042.05654405,0.00027585,7]
[379464976,1755292243818,-6199.0,0.00027585,30]
[379464977,1755292243827,-5214.54525103,0.00027585,30]
[379464978,1755292243837,-6189.79613834,0.00027585,30]
[379464979,1755292243846,-41351.5156864,0.00027585,30]
[379464980,1755292243856,-19165.5021643,0.00027585,30]
[379464981,1755292243865,-18035.47684346,0.00027585,30]
[379464982,1755292243963,-34671.59233903,0.00027585,30]
[379464983,1755292243972,-647698.14919365,0.00027585,30]
[379464984,1755292243981,-29917.35995665,0.00027585,30]
[379464985,1755292243991,-30467.33368896,0.00027585,30]
[379464986,1755292244000,-1526782.23696261,0.00027585,20]
[379464987,1755292244009,-9999.999999,0.00027585,30]
[379464988,1755292244018,-4057.01125775,0.00027585,30]
[379464989,1755292244028,-469.3853902,0.00027585,2]
[379464990,1755292244038,-825.59212413,0.00027585,35]
[379464991,1755292244047,-564.26324263,0.00027585,2]
[379464992,1755292244056,-174.49820644,0.00027585,2]
[379464993,1755292244066,-665951.66752969,0.00027585,20]
[379465257,1755292876389,172.64151,0.00013699,2]
[379465294,1755293225091,-2579.91455643,0.0001911,2]
[379465295,1755293225234,-166.31188232,0.00019303,2]
[379465296,1755293225258,-1200.0,0.00019417,2]
[379465297,1755293225279,-275.922203,0.00019518,2]
[379465298,1755293225300,-275.922203,0.00019518,2]
[379465299,1755293225320,-671.2794392,0.00019579,2]
[379465300,1755293225341,-156.90980111,0.0001988,2]
[379465301,1755293225364,-3551.79121251,0.000199,2]
[379465302,1755293225384,-213.542944,0.00019911,2]
[379465303,1755293225408,-300.0,0.00020296,2]
[379465304,1755293225436,-200.0,0.00020297,20]
[379465305,1755293225462,-200.0,0.00020297,20]
[379465306,1755293225487,-200.0,0.00020297,20]
[379465307,1755293225512,-200.0,0.00020297,20]
[379465308,1755293225538,-200.0,0.00020297,20]
[379465309,1755293225563,-200.0,0.00020297,20]
[379465310,1755293225587,-200.0,0.00020297,20]
[379465311,1755293225611,-200.0,0.00020297,20]
[379465312,1755293225631,-1286.03118973,0.00020373,2]
[379465313,1755293225656,-502.65015297,0.00020415,2]
[379465314,1755293225679,-500.0,0.00020415,2]
[379465315,1755293225700,-500.0,0.00020415,2]
[379465316,1755293225723,-500.0,0.00020415,2]
[379465317,1755293225743,-475.94995835,0.00020415,2]
[379465318,1755293225774,-500.0,0.00020415,2]
[379465319,1755293225800,-593.85856103,0.00020415,2]
[379465320,1755293225821,-500.0,0.00020415,2]
[379465321,1755293225842,-500.0,0.00020415,2]
[379465322,1755293225864,-232.65095122,0.00020415,2]
[379465323,1755293225887,-3551.79121239,0.00020416,2]
[379465324,1755293225909,-46592.918769,0.00020416,2]
[379465325,1755293225929,-500.0,0.00020473,2]
[379465326,1755293225950,-502.43706856,0.00020473,2]
[379465327,1755293225970,-339.30327965,0.00020473,2]
[379465328,1755293225990,-500.0,0.000208,2]
[379465329,1755293226012,-3551.79121239,0.00020932,2]
[379465330,1755293226032,-1200.0,0.00021258,2]
[379465331,1755293226052,-1286.03118969,0.00021389,2]
[379465332,1755293226074,-3551.79121239,0.00021448,2]
[379465333,1755293226098,-276.35,0.00021601,2]
[379465334,1755293226118,-160.0,0.00021777,2]
[379465335,1755293226141,-843.47195277,0.00021777,2]
[379465336,1755293226161,-216.77912109,0.00021777,2]
[379465337,1755293226181,-160.0,0.00021777,2]
[379465338,1755293226202,-232.08354597,0.00021777,2]
[379465339,1755293226222,-160.0,0.00021777,2]
[379465340,1755293226241,-160.0,0.00021777,2]
[379465342,1755293226263,-3551.79121239,0.00021965,2]
[379465343,1755293226283,-417.15472785,0.0002197,2]
[379465344,1755293226302,-462.0440047,0.0002197,2]
[379465345,1755293226322,-215.63758983,0.00021972,2]
[379465346,1755293226344,-420.0,0.00022093,2]
[379465347,1755293226370,-200.0,0.00022284,20]
[379465348,1755293226397,-200.0,0.00022284,20]
[379465349,1755293226422,-200.0,0.00022284,20]
[379465350,1755293226448,-200.0,0.00022284,20]
[379465351,1755293226472,-200.0,0.00022284,20]
[379465352,1755293226497,-200.0,0.00022284,20]
[379465353,1755293226521,-200.0,0.00022284,20]
[379465354,1755293226545,-200.0,0.00022284,20]
[379465355,1755293226570,-200.0,0.00022284,20]
[379465356,1755293226595,-200.0,0.00022284,20]
[379465357,1755293226619,-240.0,0.00022284,20]
[379465358,1755293226640,-1286.03118969,0.00022404,2]
[379465359,1755293226662,-3551.79121239,0.00022481,2]
[379465360,1755293226682,-256.853,0.00022616,2]
[379465361,1755293226705,-3551.79121239,0.00022997,2]
[379465362,1755293226725,-160.0,0.00023,2]
[379465363,1755293226744,-500.0,0.0002305,2]
[379465364,1755293226768,-500.0,0.0002305,2]
[379465365,1755293226788,-500.0,0.0002305,2]
[379465366,1755293226809,-500.0,0.0002305,2]
[379465367,1755293226832,-500.0,0.00023175,2]
[379465368,1755293226855,-3551.79121239,0.00023513,2]
[379465369,1755293226882,-552.7,0.00023565,2]
[379465370,1755293226902,-251.47973499,0.00023598,2]
[379465371,1755293226923,-792.24355052,0.00023787,2]
[379465372,1755293226945,-5600.95,0.0002379,10]
[379465373,1755293226965,-10179.2116588,0.000238,2]
[379465374,1755293226985,-500.0,0.00023873,2]
[379465375,1755293227005,-500.0,0.00023873,2]
[379465376,1755293227025,-500.0,0.00023873,2]
[379465377,1755293227047,-500.0,0.00023886,2]
[379465378,1755293227070,-500.0,0.00023886,2]
[379465379,1755293227092,-500.0,0.00023886,2]
[379465380,1755293227114,-500.0,0.00023886,2]
[379465381,1755293227233,-500.0,0.00023886,2]
[379465382,1755293227259,-500.0,0.00023886,2]
[379465383,1755293227282,-500.0,0.00023886,2]
[379465384,1755293227305,-500.0,0.00023886,2]
[379465385,1755293227329,-500.0,0.00023886,2]
[379465386,1755293227352,-547.43585012,0.00023886,2]
[379465387,1755293227376,-500.0,0.00023886,2]
[379465388,1755293227400,-500.0,0.00023886,2]
[379465389,1755293227423,-500.0,0.00023886,2]
[379465390,1755293227445,-500.0,0.00023886,2]
[379465391,1755293227468,-500.0,0.00023886,2]
[379465392,1755293227491,-500.0,0.00023886,2]
[379465393,1755293227513,-500.0,0.00023886,2]
[379465394,1755293227536,-433.20509508,0.00023886,2]
[379465395,1755293227558,-500.0,0.00023886,2]
[379465396,1755293227580,-500.0,0.00023886,2]
[379465397,1755293227602,-500.0,0.00023886,2]
[379465398,1755293227623,-552.4,0.0002389,3]
[379465399,1755293227644,-368.26,0.0002389,3]
[379465400,1755293227665,-184.13,0.0002389,3]
[379465401,1755293227689,-552.43,0.0002389,3]
[379465402,1755293227711,-198250.12637135,0.000239,2]
[379465403,1755293227730,-176.27,0.000239,7]
[379465404,1755293227751,-12273.87,0.000239,7]
[379465405,1755293227777,-160.0,0.000239,7]
[379465406,1755293227797,-3607.7,0.000239,7]
[379465407,1755293227819,-232.08354597,0.00024,7]
[379465408,1755293227841,-232.08354597,0.00024,10]
[379465409,1755293227862,-843.47195277,0.00024,7]
[379465410,1755293227882,-417.15472785,0.00024,7]
[379465411,1755293227902,-160.0,0.00024,7]
[379465412,1755293227924,-3551.79121239,0.00024029,2]
[379465413,1755293227945,-587.0,0.0002405,2]
[379465414,1755293227966,-792.24355052,0.00024057,2]
[379465415,1755293227987,-792.24355052,0.00024328,2]
[379465416,1755293228007,-900.0,0.00024328,2]
[379465417,1755293228027,-1000.0,0.00024421,2]
[379465418,1755293228052,-200.0,0.00024466,20]
[379465419,1755293228079,-200.0,0.00024466,20]
[379465420,1755293228099,-972.0,0.00024518,2]
[379465421,1755293228120,-636.0,0.00024518,2]
[379465422,1755293228140,-2152.0,0.00024518,2]
[379465423,1755293228159,-408.0,0.00024518,2]
[379465424,1755293228182,-3551.79121239,0.00024545,2]
[379465425,1755293228202,-792.24355052,0.00024598,2]
[379465426,1755293228222,-380.0,0.00024658,2]
[379465427,1755293228243,-12734.07106697,0.000248,3]
[379465428,1755293228262,-232.08354597,0.000248,3]
[379465429,1755293228282,-216.77912109,0.000248,3]
[379465430,1755293228302,-843.47195277,0.000248,3]
[379465431,1755293228323,-224.66467104,0.000248,3]
[379465432,1755293228342,-160.0,0.000248,3]
[379465433,1755293228363,-417.15472785,0.000248,3]
[379465434,1755293228383,-160.0,0.000248,3]
[379465435,1755293228403,-155.18,0.00024841,7]
[379465436,1755293228424,-792.24355052,0.00024868,2]
[379465437,1755293228444,-500.0,0.00024873,2]
[379465438,1755293228465,-500.0,0.00024873,2]
[379465439,1755293228485,-569.98836299,0.00024873,2]
[379465440,1755293228507,-150.0,0.00024873,2]
[379465441,1755293228529,-500.0,0.00024873,2]
[379465442,1755293228553,-500.0,0.00024873,2]
[379465443,1755293228574,-501.07241622,0.00024873,2]
[379465444,1755293228594,-500.0,0.00024873,2]
[379465445,1755293228615,-500.0,0.00024873,2]
[379465446,1755293228636,-344652.67619242,0.000249,2]
[379465448,1755293253097,-231.18954266,0.00019203,2]
[379465452,1755293292792,416.53679619,0.00010618,2]
[379465453,1755293294833,11420.90574908,0.000125,2]
[379465454,1755293307856,283.63668482,0.0001,2]
[379465455,1755293316949,210.16977941,0.000149,2]
[379465466,1755293357151,-300.0,0.00016999,2]
[379465467,1755293357171,-55614.94509256,0.00017,2]
[379465469,1755293368494,-895.40055877,0.00017,2]
[379465470,1755293368515,-200.68072345,0.00017324,2]
[379465483,1755293431886,-2770.00233222,0.00017424,2]
[379465537,1755293437913,-2229.99766778,0.00017424,2]
[379465538,1755293437923,-1772.14544978,0.000175,2]
[379465539,1755293437932,-1331.22763385,0.000176,2]
[379465540,1755293437944,-761.72802011,0.000176,2]
[379465541,1755293437952,-803.7694936,0.000179,2]
[379465542,1755293437962,-500.0,0.00017973,2]
[379465543,1755293437970,-500.0,0.00017973,2]
[379465544,1755293437979,-300.0,0.00017999,2]
[379465545,1755293437988,-3569.3118111,0.00018,2]
[379465667,1755293439259,-36532.35355691,0.00018,2]
[379465669,1755293439270,-4987.67715246,0.00018,2]
[379465671,1755293439280,-14664.89511334,0.00018,2]
[379465674,1755293439289,-600.0,0.00018521,2]
[379465677,1755293439299,-2056.95623393,0.00019205,5]
[379465679,1755293439309,-803.76949355,0.00019272,2]
[379465681,1755293439320,-420.0,0.00019639,2]
[379465683,1755293439330,-2367.85912876,0.000199,2]
[379465685,1755293439340,-2367.85912874,0.00020416,2]
[379465687,1755293439350,-803.76949355,0.00020643,2]
[379465689,1755293439361,-288.01215939,0.00020832,2]
[379465691,1755293439371,-2367.85912874,0.00020932,2]
[379465693,1755293439381,-587.0,0.00021428,2]
[379465695,1755293439391,-2367.85912874,0.00021448,2]
[379465697,1755293439401,-2367.85912874,0.00021965,2]
[379465699,1755293439412,-216.77912109,0.0002197,2]
[379465701,1755293439421,-160.0,0.0002197,2]
[379465703,1755293439432,-232.08354597,0.0002197,2]
[379465705,1755293439443,-160.0,0.0002197,2]
[379465707,1755293439454,-843.47195277,0.0002197,2]
[379465709,1755293439464,-6151.07805532,0.00022,2]
[379465711,1755293439479,-149.91353726,0.00022,2]
[379465713,1755293439490,-803.76949355,0.00022015,2]
[379465715,1755293439499,-2367.85912874,0.00022481,2]
[379465717,1755293439509,-3889.55,0.0002278,10]
[379465719,1755293439519,-1745.68925518,0.000228,2]
[379465721,1755293439528,-2367.85912874,0.00022997,2]
[379465723,1755293439538,-160.0,0.00023,2]
[379465725,1755293439547,-823.0,0.00023381,2]
[379465727,1755293439556,-803.76949355,0.00023386,2]
[379465729,1755293439566,-2367.85912874,0.00023513,2]
[379465731,1755293439576,-265.8,0.00023641,2]
[379465733,1755293439585,-2367.85912874,0.00024029,2]
[379465735,1755293439595,-800.0,0.00024328,2]
[379465737,1755293439605,-500.0,0.00024465,2]
[379465740,1755293439615,-500.0,0.00024465,2]
[379465741,1755293439625,-403.24356656,0.00024465,2]
[379465743,1755293439634,-500.0,0.00024465,2]
[379465745,1755293439645,-500.0,0.00024465,2]
[379465747,1755293439654,-500.0,0.00024465,2]